bitfinex/quotes_BTCUSD_20241003
["timestamp","ask_amount","ask_price","bid_price","bid_amount"]
[1727963763664,0.0001,60398.0,60397.0,0.165571]
[1727963763886,0.0001,60398.0,60397.0,0.45175771]
[1727963764381,0.0001,60398.0,60397.0,0.43075771]
[1727963764616,0.0001,60398.0,60397.0,0.42875771]
[1727963765279,0.0001,60398.0,60397.0,0.265571]
[1727963765507,0.0001,60398.0,60397.0,0.31433525]
[1727963765745,0.0001,60398.0,60397.0,0.279571]
[1727963766013,0.0001,60398.0,60397.0,0.265571]
[1727963766253,0.0001,60398.0,60397.0,0.279571]
[1727963766523,0.0001,60398.0,60397.0,0.47975771]
[1727963766761,0.0001,60398.0,60397.0,0.44275771]
[1727963766987,0.0001,60398.0,60397.0,0.44775771]
[1727963767202,0.0001,60398.0,60397.0,0.46175771]
[1727963767686,0.0001,60398.0,60397.0,0.43375771]
[1727963768126,0.0001,60398.0,60397.0,0.46175771]
[1727963768393,0.0001,60398.0,60397.0,0.279571]
[1727963768670,0.0001,60398.0,60397.0,0.193571]
[1727963768901,0.0001,60398.0,60397.0,0.028]
[1727963769171,0.0001,60398.0,60397.0,0.014]
[1727963769625,0.0001,60398.0,60397.0,0.028]
[1727963770125,0.0001,60398.0,60397.0,0.179571]
[1727963770576,0.0001,60398.0,60397.0,0.188571]
[1727963770801,0.0001,60398.0,60397.0,0.009]
[1727963771036,0.165668,60398.0,60397.0,0.018]
[1727963771275,0.165668,60398.0,60397.0,0.009]
[1727963771276,0.0001,60398.0,60397.0,0.009]
[1727963771511,0.0001,60398.0,60390.0,0.331179]
[1727963771746,0.166484,60398.0,60397.0,0.009]
[1727963771990,0.166484,60398.0,60393.0,0.165581]
[1727963772226,0.166484,60398.0,60390.0,0.331179]
[1727963772227,0.166484,60398.0,60394.0,0.41551343]
[1727963772469,0.166484,60398.0,60397.0,0.009]
[1727963772710,0.000916,60398.0,60397.0,0.018]
[1727963772962,0.000916,60398.0,60397.0,0.24348124]
[1727963773223,0.000916,60398.0,60397.0,0.174571]
[1727963773452,0.001016,60399.0,60397.0,0.174571]
[1727963773453,0.001016,60399.0,60398.0,0.128]
[1727963773706,0.001016,60399.0,60398.0,0.89702927]
[1727963773968,0.001016,60399.0,60396.0,0.331146]
[1727963773969,0.000816,60408.0,60407.0,0.165543]
[1727963774214,0.000816,60408.0,60407.0,0.2152083]
[1727963774905,0.00077017,60408.0,60407.0,0.165543]
[1727963775576,0.00077017,60408.0,60407.0,0.179543]
[1727963775825,0.00077017,60408.0,60407.0,0.165543]
[1727963777026,0.00077017,60408.0,60407.0,0.179543]
[1727963777242,0.00077017,60408.0,60407.0,0.193543]
[1727963777504,0.00077017,60408.0,60407.0,0.179543]
[1727963777738,0.00077017,60408.0,60407.0,0.44272971]
[1727963778246,0.0002,60419.0,60413.0,0.165527]
[1727963780649,0.0002,60419.0,60413.0,0.193527]
[1727963780893,0.0002,60419.0,60413.0,0.179527]
[1727963781125,0.0002,60419.0,60413.0,0.193527]
[1727963781402,0.0002,60419.0,60413.0,0.179527]
[1727963781901,0.0002,60419.0,60413.0,0.193527]
[1727963782126,0.165514,60418.0,60413.0,0.193527]
[1727963783587,0.081916,60414.0,60413.0,0.165527]
[1727963783801,0.081916,60414.0,60413.0,0.026]
[1727963784072,0.000816,60414.0,60413.0,0.42746243]
[1727963784303,0.000816,60414.0,60413.0,0.165527]
[1727963784533,0.000816,60414.0,60413.0,0.189527]
[1727963784816,0.000816,60414.0,60413.0,0.024]
[1727963785277,0.16634,60414.0,60413.0,0.012]
[1727963785518,0.282304,60414.0,60413.0,0.012]
[1727963786017,0.000816,60414.0,60406.0,0.331092]
[1727963786276,0.000816,60414.0,60413.0,0.014]
[1727963786760,0.000816,60414.0,60413.0,0.179527]
[1727963786989,0.000816,60414.0,60413.0,0.177527]
[1727963787929,0.000816,60414.0,60413.0,0.189527]
[1727963788413,0.000816,60414.0,60413.0,0.177527]
[1727963788646,0.000816,60414.0,60413.0,0.190527]
[1727963788880,0.000816,60414.0,60413.0,0.025]
[1727963789177,0.000816,60414.0,60413.0,0.178527]
[1727963789413,0.2160958,60414.0,60413.0,0.026]
[1727963789651,0.16634,60414.0,60413.0,0.026]
[1727963789886,0.16634,60414.0,60413.0,0.013]
[1727963790354,0.16634,60414.0,60413.0,0.027]
[1727963790601,0.000816,60414.0,60413.0,0.178527]
[1727963791048,0.000816,60414.0,60413.0,0.191527]
[1727963792226,0.000816,60414.0,60413.0,0.44146243]
[1727963792465,0.000816,60414.0,60413.0,0.191527]
[1727963792700,0.000816,60414.0,60413.0,0.44146243]
[1727963792923,0.000816,60414.0,60413.0,0.191527]
[1727963794709,0.000816,60414.0,60413.0,0.178527]
[1727963794959,0.000816,60414.0,60413.0,0.17998415]
[1727963795185,0.000816,60414.0,60413.0,0.18098415]
[1727963795664,0.000816,60414.0,60413.0,0.19498415]
[1727963795884,0.000816,60414.0,60413.0,0.193527]
[1727963796120,0.000816,60414.0,60413.0,0.179527]
[1727963796859,0.000816,60414.0,60413.0,0.41546243]
[1727963797128,0.000816,60414.0,60413.0,0.42946243]
[1727963797368,0.000816,60414.0,60413.0,0.193527]
[1727963797587,0.000816,60414.0,60413.0,0.179527]
[1727963798091,0.000816,60414.0,60413.0,0.193527]
[1727963798336,0.000816,60414.0,60413.0,0.165527]
[1727963798809,0.000816,60414.0,60413.0,0.179527]
[1727963799037,0.000816,60414.0,60413.0,0.18125234]
[1727963799275,0.000816,60414.0,60413.0,0.16725234]
[1727963799524,0.000816,60414.0,60413.0,0.18125234]
[1727963799797,0.000816,60414.0,60413.0,0.19525234]
[1727963800009,0.000816,60414.0,60413.0,0.16725234]
[1727963800220,0.000816,60414.0,60413.0,0.35671371]
[1727963800443,0.000816,60414.0,60413.0,0.45671371]
[1727963800659,0.000816,60414.0,60413.0,0.44271371]
[1727963800886,0.000816,60414.0,60413.0,0.45671371]
[1727963801616,0.000816,60414.0,60413.0,0.279527]
[1727963801859,0.000816,60414.0,60413.0,0.179527]
[1727963802104,0.000816,60414.0,60413.0,0.193527]
[1727963802539,0.000816,60414.0,60413.0,0.19448596]
[1727963802755,0.000816,60414.0,60413.0,0.18048596]
[1727963803213,0.000816,60414.0,60413.0,0.19448596]
[1727963803470,0.000816,60414.0,60413.0,0.18048596]
[1727963803707,0.000816,60414.0,60413.0,0.43042139]
[1727963803918,0.000816,60414.0,60413.0,0.165527]
[1727963804421,0.000816,60414.0,60413.0,0.179527]
[1727963804634,0.000816,60414.0,60413.0,0.165527]
[1727963804877,0.000816,60414.0,60413.0,0.42871371]
[1727963805120,0.000816,60414.0,60413.0,0.44271371]
[1727963805381,1e-06,60414.0,60413.0,0.47630536]
[1727963805637,1e-06,60414.0,60413.0,0.55560536]
[1727963805888,1e-06,60414.0,60413.0,0.56960536]
[1727963806132,0.0002,60419.0,60418.0,0.71078756]
[1727963806373,0.0002,60419.0,60418.0,0.89156592]
[1727963806853,0.0002,60419.0,60418.0,0.89356592]
[1727963807075,0.0002,60419.0,60418.0,1.01715669]
[1727963807334,0.0002,60419.0,60418.0,0.99956504]
[1727963807559,0.0002,60419.0,60418.0,1.00285203]
[1727963807784,0.0002,60419.0,60418.0,1.03103418]
[1727963808001,0.0002,60419.0,60418.0,0.90544341]
[1727963808271,0.0002,60419.0,60418.0,0.91444341]
[1727963808493,0.0002,60419.0,60418.0,0.30198214]
[1727963808705,0.0002,60419.0,60418.0,0.79172542]
[1727963808921,0.0002,60419.0,60418.0,0.80572542]
[1727963809148,0.0002,60419.0,60418.0,0.90544341]
[1727963809626,0.0002,60419.0,60418.0,0.91944341]
[1727963810099,0.0002,60419.0,60418.0,1.04308329]
[1727963810324,0.0002,60439.0,60438.0,0.165458]
[1727963811707,0.0002,60439.0,60438.0,0.42739343]
[1727963811966,0.0002,60439.0,60438.0,0.177458]
[1727963812656,0.0002,60439.0,60438.0,0.189458]
[1727963813133,0.0002,60439.0,60438.0,0.177458]
[1727963813369,0.0002,60439.0,60438.0,0.179458]
[1727963813855,0.0002,60439.0,60438.0,0.193458]
[1727963814083,0.0002,60439.0,60438.0,0.179458]
[1727963814317,0.0002,60439.0,60438.0,0.193458]
[1727963814549,0.0002,60439.0,60438.0,0.179458]
[1727963814794,0.0002,60439.0,60438.0,0.014]
[1727963815068,0.0002,60439.0,60438.0,0.178458]
[1727963815297,0.0002,60439.0,60438.0,0.179458]
[1727963815789,0.0002,60439.0,60438.0,0.165458]
[1727963816015,0.0002,60439.0,60438.0,0.177458]
[1727963816494,0.0002,60439.0,60438.0,0.165458]
[1727963816729,0.0002,60439.0,60438.0,0.179458]
[1727963817429,0.0002,60439.0,60438.0,0.193458]
[1727963817672,0.0002,60439.0,60438.0,0.179458]
[1727963817897,0.0002,60439.0,60438.0,0.193458]
[1727963818129,0.0002,60439.0,60438.0,0.014]
[1727963818377,0.0002,60439.0,60435.0,0.24993543]
[1727963818378,0.1728,60438.0,60435.0,0.24993543]
[1727963818626,0.1728,60438.0,60437.0,0.165461]
[1727963820301,0.1738,60438.0,60437.0,0.41539643]
[1727963820539,0.1728,60438.0,60437.0,0.165461]
[1727963820787,0.1738,60438.0,60437.0,0.179461]
[1727963821287,0.1738,60438.0,60437.0,0.028]
[1727963821549,0.339258,60438.0,60437.0,0.028]
[1727963821797,0.339258,60438.0,60436.0,0.24993543]
[1727963821798,0.1738,60438.0,60436.0,0.24993543]
[1727963822257,0.1738,60438.0,60437.0,0.42939643]
[1727963822258,0.0823,60438.0,60437.0,0.42939643]
[1727963822501,0.0823,60438.0,60437.0,0.179461]
[1727963822757,0.0823,60438.0,60437.0,0.165461]
[1727963822998,0.0823,60438.0,60437.0,0.174461]
[1727963822999,0.0813,60438.0,60437.0,0.174461]
[1727963823435,0.0823,60438.0,60437.0,0.182461]
[1727963823673,0.0813,60438.0,60437.0,0.174461]
[1727963823898,0.001017,60439.0,60438.0,0.165458]
[1727963824394,0.001017,60439.0,60438.0,0.51539343]
[1727963824622,0.001017,60439.0,60438.0,0.265458]
[1727963826275,0.002017,60439.0,60438.0,0.27747196]
[1727963826514,0.003017,60439.0,60438.0,0.68728562]
[1727963826817,0.003017,60439.0,60438.0,0.27416348]
[1727963827076,0.002017,60439.0,60438.0,0.267458]
[1727963827337,0.002017,60439.0,60438.0,0.002]
[1727963827620,0.335673,60439.0,60438.0,0.002]
[1727963827844,0.165472,60433.0,60432.0,0.01721809]
[1727963828766,0.192217,60439.0,60432.0,0.01721809]
[1727963828767,0.170217,60439.0,60432.0,0.01721809]
[1727963829017,0.02593959,60438.0,60437.0,0.165459]
[1727963829713,0.169217,60439.0,60438.0,0.165458]
[1727963829951,0.002017,60439.0,60438.0,0.165458]
[1727963830397,0.001017,60439.0,60438.0,0.165458]
[1727963830682,0.001017,60439.0,60432.0,0.01885209]
[1727963830920,0.165472,60433.0,60432.0,0.01885209]
[1727963831135,0.0675303,60433.0,60432.0,0.01885209]
[1727963831358,0.2330023,60433.0,60432.0,0.01885209]
[1727963831577,0.0675303,60433.0,60432.0,0.01885209]
[1727963831803,0.2330023,60433.0,60432.0,0.02385209]
[1727963832061,0.661857,60436.0,60432.0,0.02385209]
[1727963832062,0.330928,60436.0,60432.0,0.02385209]
[1727963832317,0.330934,60435.0,60432.0,0.01885209]
[1727963832610,0.288472,60433.0,60432.0,0.01885209]
[1727963832855,0.30921,60419.0,60413.0,0.001634]
[1727963833566,0.165523,60415.0,60413.0,0.001634]
[1727963833822,0.2626524,60414.0,60413.0,0.001634]
[1727963834050,0.0971284,60414.0,60413.0,0.001634]
[1727963834285,0.2626524,60414.0,60413.0,0.001634]
[1727963834723,0.16964579,60419.0,60413.0,0.001634]
[1727963835224,0.166524,60414.0,60413.0,0.001634]
[1727963835464,0.166524,60414.0,60413.0,0.005634]
[1727963835701,0.189524,60414.0,60413.0,0.005634]
[1727963835932,0.189524,60414.0,60412.0,0.00163]
[1727963835933,0.188527,60413.0,60412.0,0.00163]
[1727963836593,0.41701735,60413.0,60412.0,0.00163]
[1727963836830,0.41700588,60413.0,60412.0,0.00163]
[1727963837077,0.41700497,60413.0,60412.0,0.00163]
[1727963837350,0.367527,60413.0,60412.0,0.00163]
[1727963837590,0.59217006,60413.0,60412.0,0.00163]
[1727963837859,0.16554,60408.0,60407.0,0.00163]
[1727963838075,0.16554,60408.0,60380.0,0.24993543]
[1727963838076,0.16556,60401.0,60380.0,0.24993543]
[1727963838317,0.18856,60401.0,60383.0,0.165608]
[1727963838593,0.16556,60401.0,60384.0,0.165604]
[1727963838848,0.16556,60401.0,60387.0,0.58113143]
[1727963838849,0.19151492,60401.0,60387.0,0.58113143]
[1727963839096,0.19151492,60401.0,60388.0,0.24993543]
[1727963839097,0.2814464,60401.0,60388.0,0.24993543]
[1727963839308,0.4031464,60401.0,60388.0,0.24993543]
[1727963839539,0.165593,60389.0,60388.0,0.24993543]
[1727963840283,0.165601,60386.0,60380.0,0.24993543]
[1727963840504,0.24993543,60398.0,60381.0,0.165612]
[1727963840971,0.24993543,60398.0,60380.0,0.24993543]
[1727963840972,0.165602,60386.0,60380.0,0.24993543]
[1727963841194,0.331196,60388.0,60381.0,0.24993543]
[1727963841415,0.24993543,60390.0,60370.0,0.331286]
[1727963841638,0.123,60397.0,60380.0,0.24993543]
[1727963841639,0.331177,60391.0,60380.0,0.24993543]
[1727963841858,0.09481924,60396.0,60368.0,0.1]
[1727963841859,0.0259588,60386.0,60372.0,0.331275]
[1727963842096,0.165614,60382.0,60375.0,0.24993543]
[1727963842337,0.02758942,60385.0,60375.0,0.24993543]
[1727963842573,0.001,60390.0,60379.0,0.28447053]
[1727963842834,0.001,60390.0,60385.0,0.165601]
[1727963843071,0.001,60390.0,60379.0,0.28447053]
[1727963843072,0.001,60390.0,60386.0,0.165598]
[1727963843308,0.001,60390.0,60379.0,0.28447053]
[1727963843309,0.001,60390.0,60389.0,0.165593]
[1727963844081,0.1749,60401.0,60385.0,0.331203]
[1727963844333,0.02595491,60402.0,60385.0,0.331203]
[1727963844334,0.02595491,60402.0,60389.0,0.28447053]
[1727963844587,0.24993543,60400.0,60399.0,0.165565]
[1727963844839,0.000818,60413.0,60405.0,0.165549]
[1727963844840,0.02595515,60406.0,60405.0,0.165549]
[1727963845046,0.000818,60413.0,60412.0,0.16553]
[1727963845297,0.000818,60413.0,60412.0,0.45331079]
[1727963845520,0.000818,60413.0,60412.0,0.45000053]
[1727963845763,0.000818,60413.0,60412.0,0.16553]
[1727963847721,0.001818,60413.0,60412.0,0.16553]
[1727963847978,0.002818,60413.0,60412.0,0.17853]
[1727963848215,0.000818,60413.0,60412.0,0.16553]
[1727963848468,0.000818,60413.0,60412.0,0.17453]
[1727963848469,0.002818,60413.0,60412.0,0.17453]
[1727963848714,0.002818,60413.0,60412.0,0.16553]
[1727963848715,0.001818,60413.0,60412.0,0.16553]
[1727963848977,0.000818,60413.0,60412.0,0.16553]
[1727963849230,0.000818,60413.0,60408.0,0.331079]
[1727963849231,0.001818,60413.0,60408.0,0.331079]
[1727963849723,0.001818,60413.0,60412.0,0.16553]
[1727963849988,0.0185515,60413.0,60412.0,0.16553]
[1727963850459,0.0175515,60413.0,60412.0,0.16553]
[1727963850699,0.001818,60413.0,60412.0,0.17953]
[1727963851192,0.000818,60413.0,60412.0,0.16553]
[1727963851446,0.001818,60413.0,60412.0,0.16553]
[1727963851689,0.001818,60413.0,60412.0,0.17453]
[1727963851947,0.000818,60413.0,60412.0,0.41546543]
[1727963852197,0.001818,60413.0,60412.0,0.16553]
[1727963852458,0.002818,60413.0,60412.0,0.69223277]
[1727963852706,0.001818,60413.0,60412.0,0.42871671]
[1727963852958,0.002818,60413.0,60412.0,0.43771671]
[1727963853448,0.001818,60413.0,60412.0,0.43771671]
[1727963853695,0.002818,60413.0,60412.0,0.71334291]
[1727963853941,0.002818,60413.0,60412.0,0.88314385]
[1727963854190,0.001818,60413.0,60412.0,0.87914385]
[1727963854434,0.000818,60413.0,60412.0,0.87914385]
[1727963854693,0.002818,60413.0,60412.0,0.89114385]
[1727963854911,0.001818,60413.0,60412.0,0.87914385]
[1727963855154,0.000818,60413.0,60412.0,0.87914385]
[1727963855371,0.002818,60413.0,60412.0,0.89114385]
[1727963855653,0.002818,60413.0,60412.0,0.90214385]
[1727963855654,0.001818,60413.0,60412.0,0.90214385]
[1727963855901,0.24993543,60435.0,60434.0,0.165469]
[1727963856350,0.001017,60439.0,60438.0,0.165458]
[1727963857841,0.002017,60439.0,60438.0,0.165458]
[1727963858347,0.001017,60439.0,60438.0,0.165458]
[1727963858597,0.002017,60439.0,60438.0,0.165458]
[1727963858798,0.003017,60439.0,60438.0,0.177458]
[1727963859037,0.002017,60439.0,60438.0,0.165458]
[1727963859276,0.002017,60439.0,60438.0,0.177458]
[1727963859539,0.003017,60439.0,60438.0,0.177458]
[1727963859782,0.002017,60439.0,60438.0,0.165458]
[1727963860237,0.001017,60439.0,60438.0,0.165458]
[1727963860687,0.002017,60439.0,60438.0,0.166458]
[1727963861145,0.002017,60439.0,60438.0,0.177458]
[1727963861371,0.003017,60439.0,60438.0,0.18140974]
[1727963861607,0.002017,60439.0,60438.0,0.16940974]
[1727963861833,0.003017,60439.0,60438.0,0.18140974]
[1727963862051,0.003017,60439.0,60438.0,0.44959645]
[1727963862274,0.003017,60439.0,60438.0,0.44664471]
[1727963862709,0.003017,60439.0,60438.0,0.45330926]
[1727963863583,1e-06,60439.0,60438.0,0.45330926]
[1727963863788,1e-06,60439.0,60438.0,0.47630926]
[1727963864228,0.001016,60459.0,60458.0,0.165404]
[1727963864440,0.001016,60459.0,60458.0,0.87240362]
[1727963865313,1e-06,60459.0,60458.0,1.12233905]
[1727963865520,0.001001,60459.0,60458.0,0.90740362]
[1727963866027,0.001001,60459.0,60458.0,0.90940362]
[1727963867550,0.001001,60459.0,60458.0,0.92340362]
[1727963868619,0.001,60459.0,60458.0,0.92340362]
[1727963868840,1e-06,60459.0,60458.0,0.92840362]
[1727963869140,0.0159355,60472.0,60458.0,0.92840362]
[1727963869141,0.0159355,60472.0,60471.0,0.002]
[1727963869350,0.0159355,60472.0,60471.0,0.89736762]
[1727963869830,0.0159355,60472.0,60471.0,0.74245728]
[1727963870315,0.0159355,60472.0,60471.0,0.265368]
[1727963870748,0.0159355,60472.0,60471.0,0.165368]
[1727963870970,0.0159355,60472.0,60471.0,0.44927057]
[1727963871188,0.0159355,60472.0,60471.0,0.46327057]
[1727963871413,0.0159355,60472.0,60471.0,0.44927057]
[1727963871629,0.0159355,60472.0,60471.0,0.45927057]
[1727963871857,0.0169355,60472.0,60471.0,0.47327057]
[1727963872132,0.0169355,60472.0,60471.0,0.62645728]
[1727963872338,0.0159355,60472.0,60471.0,0.75045728]
[1727963872540,0.0159355,60472.0,60471.0,0.74245728]
[1727963873678,0.0169355,60472.0,60471.0,0.75645728]
[1727963873922,0.0169355,60472.0,60471.0,0.78977728]
[1727963874161,0.0159355,60472.0,60471.0,0.77577728]
[1727963874635,0.0169355,60472.0,60471.0,0.80377728]
[1727963874869,0.0169355,60472.0,60471.0,0.77045728]
[1727963875085,0.0159355,60472.0,60471.0,0.74245728]
[1727963875305,0.0159355,60472.0,60471.0,0.75645728]
[1727963875537,9.1e-07,60472.0,60471.0,0.75645728]
[1727963875794,9.1e-07,60472.0,60471.0,0.78961728]
[1727963876055,9.1e-07,60472.0,60471.0,0.77045728]
[1727963876755,0.000818,60474.0,60473.0,0.007]
[1727963877004,0.000818,60474.0,60473.0,0.270363]
[1727963877256,0.25375654,60496.0,60478.0,0.55425157]
[1727963877257,0.24993543,60495.0,60478.0,0.55425157]
[1727963877498,0.24993543,60495.0,60478.0,0.71943828]
[1727963878223,0.00382111,60496.0,60478.0,0.74243828]
[1727963878462,0.24993543,60494.0,60478.0,0.74043828]
[1727963878700,0.0012,60479.0,60478.0,0.75443828]
[1727963878911,0.0012,60479.0,60478.0,0.76843828]
[1727963879162,0.0012,60479.0,60478.0,0.58225157]
[1727963879379,0.0012,60479.0,60478.0,0.74543828]
[1727963879867,0.001017,60479.0,60478.0,0.73143828]
[1727963880099,0.001017,60479.0,60478.0,0.179349]
[1727963880341,0.002017,60479.0,60478.0,0.193349]
[1727963880569,0.002017,60479.0,60478.0,0.179349]
[1727963880809,0.001017,60479.0,60478.0,0.44925157]
[1727963881055,0.002017,60479.0,60478.0,0.62643828]
[1727963881317,0.002017,60479.0,60478.0,0.63143828]
[1727963881559,0.001017,60479.0,60478.0,0.56325157]
[1727963881798,0.001017,60479.0,60478.0,0.265349]
[1727963882037,0.001017,60479.0,60478.0,0.279349]
[1727963882285,0.001017,60479.0,60478.0,0.179349]
[1727963882492,0.002017,60479.0,60478.0,0.179349]
[1727963882965,0.002017,60479.0,60478.0,0.184349]
[1727963883246,0.002017,60479.0,60478.0,0.34753571]
[1727963883716,0.001017,60479.0,60478.0,0.44753571]
[1727963884190,0.002017,60479.0,60478.0,0.44753571]
[1727963884429,0.002017,60479.0,60478.0,0.48653571]
[1727963884651,0.002017,60479.0,60478.0,0.72247114]
[1727963884652,0.001017,60479.0,60478.0,0.72247114]
[1727963884883,0.00382111,60496.0,60495.0,0.005]
[1727963885122,0.00382111,60496.0,60495.0,0.55420457]
[1727963885363,0.00382111,60496.0,60495.0,0.54920457]
[1727963885839,0.00382111,60496.0,60495.0,0.265302]
[1727963886367,0.01623911,60500.0,60499.0,0.165291]
[1727963887075,0.001,60502.0,60501.0,0.165286]
[1727963887315,0.001,60502.0,60501.0,0.71737528]
[1727963887556,0.001,60502.0,60501.0,0.74037528]
[1727963887792,0.001,60502.0,60501.0,0.74237528]
[1727963888022,0.24993543,60524.0,60518.0,0.44914257]
[1727963888476,0.0966,60525.0,60518.0,0.44914257]
[1727963888710,0.0167535,60533.0,60518.0,0.44914257]
[1727963888989,0.165208,60530.0,60518.0,0.44914257]
[1727963889211,0.165208,60530.0,60508.0,0.005]
[1727963889212,0.33044,60526.0,60508.0,0.28390257]
[1727963889494,0.096,60519.0,60518.0,0.014]
[1727963889761,0.261237,60519.0,60518.0,0.014]
[1727963890030,0.261237,60519.0,60488.0,0.332639]
[1727963890031,0.1756,60519.0,60488.0,0.61454157]
[1727963890313,0.1756,60519.0,60511.0,0.24993543]
[1727963890545,0.1756,60519.0,60518.0,0.16524]
[1727963891268,0.1756,60519.0,60515.0,0.330493]
[1727963891501,0.1756,60519.0,60517.0,0.165241]
[1727963891737,0.1756,60519.0,60518.0,0.16524]
[1727963891990,0.0798,60519.0,60518.0,0.16524]
[1727963892245,0.0002,60519.0,60518.0,0.17124]
[1727963892911,0.0002,60519.0,60518.0,0.16524]
[1727963893155,0.0002,60519.0,60518.0,0.16624]
[1727963893632,0.0002,60519.0,60518.0,0.43442671]
[1727963894615,0.0002,60519.0,60518.0,0.45642671]
[1727963894846,0.0002,60519.0,60518.0,0.47042671]
[1727963895070,0.0002,60519.0,60518.0,0.47698304]
[1727963895320,0.0002,60519.0,60518.0,0.47598304]
[1727963895547,0.0002,60519.0,60518.0,0.47698304]
[1727963895753,0.0002,60519.0,60518.0,0.49098304]
[1727963896268,0.0002,60519.0,60518.0,0.43998304]
[1727963896483,0.0012,60519.0,60518.0,0.46698304]
[1727963896776,0.0012,60519.0,60518.0,0.46198304]
[1727963897011,0.0012,60519.0,60518.0,0.46698304]
[1727963897249,0.0012,60519.0,60518.0,0.29879633]
[1727963897475,0.0012,60519.0,60518.0,0.29224]
[1727963897693,0.0012,60519.0,60518.0,0.27824]
[1727963897913,0.0002,60519.0,60518.0,0.16524]
[1727963898125,0.0002,60519.0,60518.0,0.19324]
[1727963898389,0.165437,60519.0,60518.0,0.028]
[1727963898572,0.165437,60519.0,60504.0,0.25493543]
[1727963898573,0.16525,60515.0,60509.0,0.165264]
[1727963898797,0.0002,60519.0,60511.0,0.24993543]
[1727963899233,0.165437,60519.0,60512.0,0.330511]
[1727963899443,0.165437,60519.0,60518.0,0.011]
[1727963899675,0.0002,60519.0,60518.0,0.007]
[1727963899928,0.165437,60519.0,60518.0,0.007]
[1727963900397,0.0002,60519.0,60518.0,0.007]
[1727963900658,0.0002,60519.0,60518.0,0.17224]
[1727963900903,0.0002,60519.0,60518.0,0.16524]
[1727963901358,0.0002,60519.0,60518.0,0.27024]
[1727963901872,0.0002,60519.0,60518.0,0.28124]
[1727963902322,0.0821,60519.0,60518.0,0.024]
[1727963902547,0.247337,60519.0,60518.0,0.013]
[1727963902802,0.247337,60519.0,60514.0,0.165249]
[1727963902803,0.165242,60518.0,60514.0,0.165249]
[1727963903014,0.165242,60518.0,60514.0,0.24993543]
[1727963903236,0.0821,60519.0,60507.0,0.330536]
[1727963903502,0.16524,60518.0,60513.0,0.24993543]
[1727963903761,0.412577,60519.0,60513.0,0.24993543]
[1727963903762,0.0821,60519.0,60518.0,0.166872]
[1727963903981,0.082916,60519.0,60518.0,0.166872]
[1727963904202,0.082916,60519.0,60518.0,0.180872]
[1727963904704,0.082916,60519.0,60518.0,0.166872]
[1727963904918,0.082916,60519.0,60518.0,0.178872]
[1727963905401,0.082916,60519.0,60518.0,0.166872]
[1727963905666,0.082916,60519.0,60518.0,0.188872]
[1727963906657,0.082916,60519.0,60518.0,0.013632]
[1727963906887,0.248153,60519.0,60518.0,0.013632]
[1727963907864,0.33906,60519.0,60518.0,0.001632]
[1727963908118,0.43096,60519.0,60518.0,0.009632]
[1727963908365,0.340053,60519.0,60518.0,0.011632]
[1727963908603,0.340053,60519.0,60518.0,0.001632]
[1727963909084,0.174816,60519.0,60518.0,0.004632]
[1727963909351,0.174816,60519.0,60518.0,0.169872]
[1727963909596,0.174816,60519.0,60518.0,0.166872]
[1727963909833,0.176816,60519.0,60518.0,0.166872]
[1727963910102,0.176816,60519.0,60518.0,0.001632]
[1727963910583,0.373,60531.0,60520.0,0.165234]
[1727963910853,0.0951069,60550.0,60538.0,0.170185]
[1727963910854,0.0001069,60550.0,60538.0,0.170185]
[1727963911092,0.0001069,60550.0,60549.0,0.26493594]
[1727963911562,0.0001069,60550.0,60549.0,0.26823807]
[1727963911813,0.0001069,60550.0,60549.0,0.86798093]
[1727963912060,0.0001069,60550.0,60549.0,0.8646788]
[1727963912311,0.0001069,60550.0,60549.0,0.8876788]
[1727963912533,0.0001069,60550.0,60549.0,0.9036788]
[1727963912780,0.0001069,60550.0,60549.0,0.8786788]
[1727963913007,0.0001069,60550.0,60549.0,0.27893594]
[1727963913288,0.0001069,60550.0,60549.0,0.29293594]
[1727963913526,0.0001069,60550.0,60549.0,0.73405808]
[1727963913780,0.0002,60559.0,60558.0,0.72968615]
[1727963914057,0.0002,60559.0,60558.0,1.06987286]
[1727963914280,0.000817,60561.0,60560.0,0.328285]
[1727963914512,0.000817,60561.0,60560.0,0.49147171]
[1727963914732,1e-06,60561.0,60560.0,0.49147171]
[1727963915256,0.0002,60579.0,60578.0,0.70163215]
[1727963915520,0.0002,60579.0,60578.0,0.86481886]
[1727963916644,0.0002,60579.0,60578.0,0.87881886]
[1727963916868,0.0109515,60593.0,60579.0,0.1]
[1727963917306,0.0109515,60593.0,60592.0,0.165038]
[1727963917817,0.0109515,60593.0,60592.0,0.41497343]
[1727963918042,0.0109515,60593.0,60592.0,0.165038]
[1727963918280,0.0109515,60593.0,60592.0,0.41497343]
[1727963918520,0.0109515,60593.0,60592.0,0.68316014]
[1727963918763,0.0109515,60593.0,60592.0,0.70616014]
[1727963919031,0.000816,60611.0,60598.0,0.76273715]
[1727963919285,0.000816,60611.0,60598.0,0.92592386]
[1727963919747,0.000816,60611.0,60598.0,0.92792386]
[1727963919994,1e-06,60600.0,60599.0,0.328179]
[1727963920248,1e-06,60600.0,60599.0,0.49136571]
[1727963920478,1e-06,60600.0,60599.0,0.265019]
[1727963921230,1e-06,60600.0,60599.0,0.279019]
[1727963921484,1e-06,60600.0,60599.0,0.179019]
[1727963921744,1e-06,60600.0,60599.0,0.165019]
[1727963921968,1e-06,60600.0,60599.0,0.179019]
[1727963922251,1e-06,60600.0,60599.0,0.014]
[1727963922445,1e-06,60600.0,60599.0,0.77876186]
[1727963922718,1e-06,60600.0,60599.0,0.70957515]
[1727963922996,1e-06,60600.0,60599.0,0.71957515]
[1727963923244,1e-06,60600.0,60599.0,0.018]
[1727963923514,1e-06,60600.0,60599.0,0.183019]
[1727963923703,1e-06,60600.0,60599.0,0.018]
[1727963924206,1e-06,60600.0,60578.0,0.43655615]